bitfinex/quotes_ETHUSD_20260308
["timestamp","ask_amount","ask_price","bid_price","bid_amount"]
[1772957095848,0.001,1953.2,1953.1,0.0011]
[1772957096351,0.48379912,1953.2,1953.1,0.0011]
[1772957097750,0.001,1953.2,1953.1,0.0011]
[1772957103856,0.45232766,1953.2,1952.9,0.0011]
[1772957104028,0.45232766,1953.2,1952.7,0.49202025]
[1772957104228,0.45132766,1953.0,1952.7,0.49202025]
[1772957104556,1.28001638,1953.1,1952.8,0.49507117]
[1772957104929,1.73134404,1953.1,1952.8,0.49507117]
[1772957105661,0.45132766,1953.0,1952.6,0.0011]
[1772957106784,0.45132766,1952.8,1952.6,0.0011]
[1772957108544,0.45132766,1952.8,1952.7,0.0011]
[1772957108769,1.73154068,1952.8,1952.7,0.0011]
[1772957111141,0.45232766,1953.1,1952.7,0.49617117]
[1772957111341,1.28103109,1953.1,1952.7,0.49617117]
[1772957112663,1.73235875,1953.1,1952.7,0.49617117]
[1772957114847,1.28103109,1953.1,1952.7,0.49617117]
[1772957117863,1.73235875,1953.1,1952.7,0.49617117]
[1772957120484,1.73235875,1953.1,1952.8,0.0011]
[1772957120662,1.73235875,1953.1,1952.8,0.49617117]
[1772957121169,1.28103109,1953.1,1952.8,0.49617117]
[1772957122159,0.001,1953.1,1952.8,0.49617117]
[1772957123788,0.45232766,1953.1,1952.8,0.49617117]
[1772957124092,0.45232766,1953.1,1952.8,0.0011]
[1772957124392,1.28008192,1953.0,1952.8,0.0011]
[1772957125091,1.28008192,1953.0,1952.8,0.49617117]
[1772957131915,1.28108192,1953.0,1952.8,0.49617117]
[1772957132870,0.49411519,1953.0,1952.8,0.0011]
[1772957135692,1.77424541,1953.0,1952.8,0.0011]
[1772957137804,0.49311519,1952.9,1952.7,0.0011]
[1772957139973,1.28021302,1952.8,1952.7,0.0011]
[1772957141210,1.77332821,1952.8,1952.7,0.0011]
[1772957146785,1.28021302,1952.8,1952.7,0.0011]
[1772957148124,1.77332821,1952.8,1952.7,0.0011]
[1772957153123,1.28021302,1952.8,1952.7,0.0011]
[1772957156726,0.49311519,1952.7,1952.6,0.0011]
[1772957156932,0.49311519,1952.7,1952.5,0.0011]
[1772957157135,0.49311519,1952.7,1952.3,1.76103573]
[1772957157323,0.49311519,1952.7,1952.1,1.35062334]
[1772957157521,0.49311519,1952.7,1952.1,1.2981]
[1772957159733,1.28034415,1952.6,1952.1,1.2981]
[1772957159934,0.49311519,1952.5,1952.1,1.2981]
[1772957161930,1.7735905,1952.4,1952.1,1.2981]
[1772957163004,1.7735905,1952.4,1952.1,1.35062334]
[1772957165350,0.47473833,1952.9,1952.1,1.2981]
[1772957165508,1.28117903,1952.9,1952.2,1.97109021]
[1772957167042,1.28117903,1952.9,1952.3,1.2805409]
[1772957168137,1.78117903,1952.9,1952.3,1.2805409]
[1772957169613,0.5,1952.8,1952.3,1.2805409]
[1772957171218,1.78026372,1952.8,1952.2,3.2527534]
[1772957174748,0.001,1952.9,1952.2,3.2527534]
[1772957175447,1.7811487,1952.9,1952.2,3.2527534]
[1772957176629,0.5,1952.8,1952.2,3.2527534]
[1772957177845,0.5,1952.8,1952.2,0.0011]
[1772957179050,0.5,1952.6,1952.2,0.0011]
[1772957180937,0.5,1952.4,1952.2,0.0011]
[1772957182259,1.78130157,1952.7,1952.2,0.0011]
[1772957184555,0.001,1952.7,1952.2,0.0011]
[1772957184734,0.5,1952.6,1952.2,0.0011]
[1772957190966,1.78034446,1952.6,1952.2,0.0011]
[1772957191174,0.5,1952.6,1952.2,0.0011]
[1772957191467,0.5,1952.5,1952.2,0.0011]
[1772957191857,0.5,1952.5,1952.3,0.0011]
[1772957194844,1.78133151,1952.7,1952.3,0.0011]
[1772957195045,0.5,1952.6,1952.3,0.0011]
[1772957197072,1.53736961,1957.6,1952.3,0.0011]
[1772957197073,5.05916093,1953.5,1952.3,0.0011]
[1772957197274,0.4578972,1953.9,1953.3,0.48048208]
[1772957197449,0.4578972,1953.9,1953.6,1.18539775]
[1772957197654,0.4578972,1953.9,1953.4,1.76448208]
[1772957198062,0.4578972,1953.9,1953.4,1.284]
[1772957198268,0.4578972,1953.9,1953.1,0.48048208]
[1772957200073,0.4578972,1953.7,1953.2,1.27995084]
[1772957200378,0.4578972,1953.7,1953.2,1.76043292]
[1772957202558,0.4578972,1953.6,1953.2,1.76043292]
[1772957202780,0.4578972,1953.6,1953.2,0.48048208]
[1772957203089,0.00153886,1954.0,1953.3,0.48048208]
[1772957203798,0.001,1953.6,1953.3,0.48048208]
[1772957204596,0.001,1953.6,1953.4,1.76030188]
[1772957205371,0.001,1953.6,1953.4,0.48048208]
[1772957205796,0.4578972,1953.9,1953.4,0.48048208]
[1772957206998,0.4578972,1953.9,1953.5,1.76023636]
[1772957208604,0.4578972,1953.9,1953.4,5.11909738]
[1772957208605,0.4578972,1953.8,1953.4,0.48048208]
[1772957209503,0.4578972,1953.6,1953.2,1.76042304]
[1772957210300,0.4578972,1953.6,1953.2,0.48048208]
[1772957211804,0.4578972,1953.5,1953.2,0.48048208]
[1772957213811,1.27976963,1953.5,1953.1,1.252]
[1772957213990,0.4578972,1953.4,1953.1,2.53201046]
[1772957214383,0.4578972,1953.4,1953.1,3.01249254]
[1772957215220,0.4578972,1953.4,1953.3,0.0011]
[1772957217307,1.73762728,1953.6,1953.3,0.0011]
[1772957218002,0.4578972,1953.5,1953.3,0.0011]
[1772957221207,1.73767372,1953.5,1953.3,0.0011]
[1772957221512,1.73767372,1953.5,1953.1,1.252]
[1772957221513,0.4578972,1953.4,1953.1,1.252]
[1772957223211,1.77768645,1953.5,1953.2,0.49180484]
[1772957224425,0.49790993,1953.4,1953.1,1.74380484]
[1772957225819,0.49790993,1953.4,1953.1,3.02379393]
[1772957227016,0.49790993,1953.6,1953.2,0.49180484]
[1772957227832,0.49790993,1953.6,1953.3,0.49180484]
[1772957228196,0.001,1953.4,1953.3,0.49180484]
[1772957228628,0.49890993,1953.8,1953.4,0.49180484]
[1772957228925,0.001,1953.8,1953.4,0.49180484]
[1772957229827,0.001,1953.8,1953.6,0.49180484]
[1772957230031,0.001,1953.8,1953.7,0.49180484]
[1772957234738,0.001,1953.8,1953.7,1.77142811]
[1772957235942,0.001,1954.3,1954.1,0.49180484]
[1772957236127,0.48427107,1954.4,1954.1,0.49180484]
[1772957236840,0.48427107,1954.4,1954.1,1.77113533]
[1772957237941,0.49790993,1954.6,1954.2,0.49180484]
[1772957238514,0.49790993,1954.6,1954.1,1.77113533]
[1772957238716,0.49790993,1954.6,1954.0,1.301]
[1772957239009,0.49790993,1954.4,1954.0,1.301]
[1772957240845,0.49790993,1954.2,1954.0,1.301]
[1772957241447,0.49890993,1954.5,1954.1,0.49180484]
[1772957242345,0.001,1954.5,1954.1,0.49180484]
[1772957242952,0.49890993,1954.5,1954.2,1.27929587]
[1772957243650,0.49890993,1954.5,1954.2,1.77110071]
[1772957249948,0.49790993,1954.4,1954.0,1.301]
[1772957250254,0.49790993,1954.3,1954.0,1.301]
[1772957252552,0.49790993,1954.3,1954.2,0.0011]
[1772957252553,1.77714034,1954.3,1954.2,0.0011]
[1772957256058,0.49790993,1954.3,1954.2,0.0011]
[1772957256369,1.27916734,1954.4,1954.2,0.0011]
[1772957256742,0.49248659,1954.5,1954.2,0.46373053]
[1772957257063,0.001,1954.5,1954.2,0.46373053]
[1772957260955,0.49248659,1954.5,1954.2,0.0011]
[1772957263279,0.49148659,1954.3,1954.2,0.0011]
[1772957264681,0.49248659,1954.4,1954.2,0.0011]
[1772957266360,1.77166139,1954.4,1954.2,0.0011]
[1772957267655,0.49148659,1954.3,1954.2,0.0011]
[1772957271191,1.2801748,1954.4,1954.2,0.46373053]
[1772957271192,0.001,1954.4,1954.2,0.46373053]
[1772957272012,0.49248659,1954.4,1954.2,0.0011]
[1772957273783,0.001,1954.4,1954.2,0.46373053]
[1772957274666,0.49248659,1954.4,1954.2,0.0011]
[1772957276198,0.49248659,1954.4,1954.3,0.0011]
[1772957277799,0.001,1954.4,1954.3,0.0011]
[1772957281468,0.49248659,1954.4,1954.3,0.0011]
[1772957282196,0.001,1954.4,1954.3,0.0011]
[1772957287476,0.46474393,1954.4,1954.0,0.0011]
[1772957287790,0.46474393,1954.4,1953.7,0.49611906]
[1772957287991,0.46474393,1954.4,1953.8,0.49611906]
[1772957287992,0.46374393,1954.2,1953.8,0.49611906]
[1772957289086,0.46374393,1954.2,1954.1,0.0011]
[1772957291407,1.7430398,1954.2,1954.1,0.0011]
[1772957293806,1.7430398,1954.2,1953.7,1.27958423]
[1772957293807,0.46374393,1954.1,1953.7,0.49611906]
[1772957299813,0.46374393,1954.1,1953.8,0.49611906]
[1772957299814,1.74311672,1954.1,1953.8,0.49611906]
[1772957300187,1.74311672,1954.1,1953.8,0.49721906]
[1772957300386,0.46374393,1954.1,1953.8,0.49721906]
[1772957301221,1.74311035,1954.1,1953.8,0.49721906]
[1772957304014,0.46374393,1954.0,1953.8,0.0011]
[1772957306512,1.27936642,1954.1,1953.8,0.0011]
[1772957306689,1.74311035,1954.1,1953.8,0.0011]
[1772957307418,1.74311035,1954.1,1953.8,0.49721906]
[1772957312218,0.001,1954.0,1953.8,0.49721906]
[1772957312923,0.001,1954.0,1953.8,0.0011]
[1772957313217,0.46871093,1954.0,1953.8,0.0011]
[1772957322328,0.001,1954.3,1953.8,0.0011]
[1772957322329,0.001,1954.3,1953.9,0.49774597]
[1772957322507,0.001,1954.4,1954.0,0.49774597]
[1772957323031,0.001,1954.4,1954.2,0.49774597]
[1772957323723,0.001,1954.4,1954.1,1.313]
[1772957323724,0.46771093,1954.3,1954.1,1.313]
[1772957326030,0.46771093,1954.2,1954.1,1.313]
[1772957328210,0.46771093,1954.3,1954.1,1.313]
[1772957332849,1.747877,1954.4,1954.1,1.81074597]
[1772957333146,0.46871093,1954.4,1954.1,1.81074597]
[1772957333746,1.74788229,1954.4,1954.1,1.81074597]
[1772957334242,0.46871093,1954.4,1954.1,1.81074597]
[1772957334436,1.74788558,1954.4,1954.1,1.81074597]
[1772957335750,0.46871093,1954.4,1954.1,1.81074597]
[1772957335954,0.46871093,1954.4,1954.2,0.0011]
[1772957336653,1.7478761,1954.4,1954.2,0.0011]
[1772957336854,0.46871093,1954.4,1954.2,0.0011]
[1772957340763,0.001,1954.4,1954.2,0.49884597]
[1772957341355,1.28017988,1954.4,1954.2,0.49884597]
[1772957341563,1.74789081,1954.4,1954.2,0.0011]
[1772957341942,0.46871093,1954.4,1954.2,0.0011]
[1772957342237,0.001,1954.4,1954.2,0.0011]
[1772957347365,0.001,1954.4,1954.0,1.28047519]
[1772957347366,0.48682496,1954.4,1954.0,0.0011]
[1772957348549,0.48582496,1954.2,1954.0,0.0011]
[1772957350238,0.001,1954.3,1954.0,0.48602408]
[1772957350635,0.48682496,1954.3,1954.0,0.48602408]
[1772957354777,1.76611225,1954.3,1954.0,0.0011]
[1772957355357,1.7660636,1954.3,1954.0,0.0011]
[1772957360980,1.7660636,1954.3,1954.1,0.0011]
[1772957368754,0.48582496,1954.2,1954.1,0.0011]
[1772957368958,0.48582496,1954.2,1954.0,0.0011]
[1772957369861,0.48582496,1954.2,1953.8,0.0011]
[1772957371063,1.7651863,1954.1,1953.8,0.0011]
[1772957371661,1.7651863,1954.1,1953.8,0.48602408]
[1772957373901,1.7651863,1954.1,1954.0,0.0011]
[1772957384102,0.49444646,1954.0,1953.8,0.0011]
[1772957384509,0.49444646,1953.7,1952.9,0.0011]
[1772957384804,1.04639917,1953.0,1952.9,0.0011]
[1772957385011,1.54084563,1953.0,1952.9,0.0011]
[1772957385499,1.54084563,1953.0,1952.9,0.0033]
[1772957389591,1.54084563,1953.0,1952.9,0.0011]
[1772957390204,0.49444646,1953.0,1952.9,0.0011]
[1772957390602,0.49444646,1953.0,1952.9,0.0033]
[1772957392006,0.49444646,1953.1,1952.9,0.0033]
[1772957392604,0.49444646,1953.1,1953.0,0.0022]
[1772957392909,0.49444646,1953.1,1952.9,0.0011]
[1772957395408,1.7744655,1953.1,1952.9,0.0011]
[1772957397413,1.7744655,1953.1,1953.0,0.0011]
[1772957397712,0.001,1953.0,1952.9,0.0011]
[1772957412717,0.46995685,1953.0,1952.9,0.0011]
[1772957412920,0.46995685,1953.0,1952.7,0.0011]
[1772957413620,1.0207806,1953.0,1952.3,0.0011]
[1772957413820,0.46895685,1952.9,1952.3,0.0011]
[1772957415046,0.46895685,1952.7,1952.3,0.0011]
[1772957418141,0.46895685,1952.5,1952.3,0.0011]
[1772957420333,1.74943216,1952.4,1952.3,0.0011]
[1772957422560,0.46895685,1952.4,1952.3,0.0011]
[1772957422716,0.46995685,1952.4,1952.3,0.0011]
[1772957425016,1.75043216,1952.4,1952.3,0.0011]
[1772957425830,0.46995685,1952.4,1952.3,0.0011]
[1772957426037,1.75043216,1952.4,1952.3,0.0011]
[1772957431226,0.46995685,1952.4,1952.3,0.0011]
[1772957432646,0.46995685,1952.4,1952.2,0.0011]
[1772957433636,0.001,1952.4,1952.2,0.0011]
[1772957433831,0.001,1952.4,1952.2,0.46178454]
[1772957434529,0.001,1952.4,1952.3,0.0011]
[1772957434731,0.001,1952.4,1952.2,0.46178454]
[1772957439334,0.001,1952.4,1952.2,0.0011]
[1772957439535,0.45935504,1952.4,1952.2,0.0011]
[1772957441459,1.2805409,1952.3,1952.2,0.0011]
[1772957441762,1.73889594,1952.3,1952.2,0.0011]
[1772957443628,0.45835504,1952.3,1952.2,0.0011]
[1772957444173,1.73988056,1952.4,1952.2,0.0011]
[1772957444462,1.72637437,1952.4,1952.2,0.0011]
[1772957446542,1.72637437,1952.4,1952.3,0.0011]
[1772957446749,0.45935504,1952.3,1952.1,0.0011]
[1772957449540,1.73990243,1952.3,1952.1,0.0011]
[1772957457279,0.45935504,1952.3,1952.1,0.0011]
[1772957457780,1.73990245,1952.3,1952.1,0.0011]
[1772957458873,1.73990245,1952.3,1952.2,0.0011]
[1772957459073,0.001,1952.2,1952.1,0.0011]
[1772957460376,0.45935504,1952.2,1952.1,0.0011]
[1772957461086,0.45935504,1952.2,1952.0,0.00263886]
[1772957463072,1.73999431,1952.2,1951.9,0.0011]
[1772957463476,0.4727329,1952.1,1951.9,0.0011]
[1772957465101,0.001,1952.2,1951.9,0.49931545]
[1772957465387,0.001,1952.2,1952.0,0.49821545]
[1772957466891,0.001,1952.3,1952.0,0.49821545]
[1772957467565,0.001,1952.3,1952.2,0.49821545]
[1772957480979,1.28034967,1952.6,1952.1,1.28061981]
[1772957481310,1.28034967,1952.6,1952.2,0.49821545]
[1772957482018,1.75308257,1952.6,1952.2,0.49821545]
[1772957482811,1.75308257,1952.6,1952.3,0.0011]
[1772957484015,1.75308257,1952.6,1952.3,0.49931545]
[1772957488427,0.4727329,1952.8,1952.4,0.49821545]
[1772957491226,1.75301148,1952.7,1952.4,0.49821545]
[1772957494127,1.28027858,1952.7,1952.4,0.49821545]
[1772957494714,0.001,1952.6,1952.4,0.49821545]
[1772957495234,0.45563424,1952.6,1952.3,0.0011]
[1772957495922,1.73601469,1952.6,1952.3,0.0011]
[1772957498237,1.73601469,1952.6,1952.3,0.48579]
[1772957498834,0.45563424,1952.6,1952.3,0.48579]
[1772957499034,0.45463424,1952.9,1952.4,0.48469]
[1772957499211,1.28263296,1953.0,1952.4,0.48469]
[1772957499416,0.00253886,1953.0,1952.4,0.48469]
[1772957500333,0.00253886,1953.0,1952.6,0.48469]
[1772957502434,0.00253886,1953.0,1952.7,0.48469]
[1772957504775,0.00253886,1953.0,1952.8,0.48469]
[1772957504933,0.4571731,1953.0,1952.6,1.76499855]
[1772957506541,0.001,1952.9,1952.6,1.76499855]
[1772957509044,0.001,1952.9,1952.7,0.48469]
[1772957514251,0.001,1952.9,1952.7,1.76496309]
[1772957516549,0.001,1952.9,1952.8,0.48469]
[1772957518630,0.45463424,1953.5,1952.9,0.48469]
[1772957520668,0.45463424,1953.3,1952.7,0.48579]
[1772957521731,0.45463424,1953.3,1952.7,0.0011]
[1772957522741,0.47686741,1953.1,1952.7,0.49454269]
[1772957523262,5.1192792,1953.5,1952.7,0.49454269]
[1772957523263,1.75674329,1953.4,1952.7,0.49454269]
[1772957524037,1.75667426,1953.5,1952.7,0.49454269]
[1772957524279,1.75651583,1953.7,1952.7,0.49454269]
[1772957524431,1.75649809,1953.7,1952.7,0.49454269]
[1772957525059,1.75649809,1953.7,1952.9,0.49344269]
[1772957526948,1.75649809,1953.7,1953.0,1.28008192]
[1772957527154,1.75649809,1953.7,1953.1,0.49344269]
[1772957528252,1.75649088,1953.7,1953.1,0.49344269]
[1772957528454,1.75649983,1953.7,1953.1,0.49344269]
[1772957528945,0.47686741,1953.7,1953.1,0.49344269]
[1772957529879,0.47686741,1953.7,1953.3,0.49344269]
[1772957530373,1.27961689,1953.8,1953.3,0.49344269]
[1772957530374,1.27956044,1953.8,1953.3,0.49344269]
[1772957530978,0.001,1953.6,1953.3,0.49344269]
[1772957534280,0.001,1953.6,1953.4,0.49344269]
[1772957542795,0.001,1953.5,1953.4,0.49344269]
[1772957546865,0.001,1953.5,1953.2,0.49344269]
[1772957547193,0.47786741,1953.5,1953.2,0.49344269]
[1772957548899,0.47786741,1953.5,1953.2,1.773342]
[1772957553704,0.001,1953.5,1953.3,0.47371281]
[1772957556102,0.001,1953.5,1953.3,1.75357618]
[1772957564024,0.001,1953.5,1953.3,1.27986337]
[1772957564329,0.50043404,1953.5,1953.3,1.27986337]
[1772957565825,0.001,1953.4,1953.3,1.27986337]
[1772957572231,0.001,1953.5,1953.3,1.75357618]
[1772957577437,0.001,1953.4,1953.3,1.75357618]
[1772957582124,0.50043404,1953.4,1953.2,2.58794713]
[1772957582350,0.50043404,1953.4,1953.2,2.58794869]
[1772957589053,0.50043404,1953.4,1953.3,0.0011]
[1772957597862,0.001,1953.4,1953.3,0.0011]
[1772957598032,0.001,1953.4,1953.3,0.48633225]
[1772957603177,0.001,1953.4,1953.3,0.0011]
[1772957604174,0.49315488,1953.4,1953.3,0.0011]
[1772957607282,0.001,1953.4,1953.3,0.0011]
[1772957611379,0.49315488,1953.4,1953.3,0.0011]
[1772957622782,0.001,1953.4,1953.3,0.0011]
[1772957623258,0.001,1953.4,1953.3,0.4924615]
[1772957641495,0.46627094,1953.4,1953.3,0.0011]
[1772957641701,0.46627094,1953.4,1953.2,2.58901834]
[1772957649604,0.001,1953.4,1953.2,2.58901834]
[1772957649903,0.001,1953.5,1953.3,0.48593263]
[1772957652216,0.001,1953.5,1953.3,0.48703263]
[1772957652424,0.001,1953.4,1953.3,0.48703263]
[1772957655823,0.00253886,1954.0,1953.3,0.0011]
[1772957656025,0.00253886,1954.0,1953.4,0.48593263]
[1772957656203,0.00253886,1954.0,1953.6,0.48593263]
[1772957656398,0.00253886,1954.0,1953.7,0.48593263]
[1772957658927,0.00253886,1954.0,1953.8,1.27955778]
[1772957660432,0.49020311,1953.9,1953.3,0.0011]
[1772957660607,0.49020311,1953.8,1953.0,0.0011]
[1772957660799,0.49020311,1953.7,1953.0,0.0011]
[1772957661005,0.49020311,1953.5,1953.0,0.0011]
[1772957663624,0.49020311,1953.3,1953.0,0.0011]
[1772957663996,0.49020311,1953.3,1953.1,0.0011]
[1772957665536,1.27994711,1953.3,1953.1,0.0011]
[1772957665737,0.49020311,1953.2,1953.1,0.0011]
[1772957668128,1.77015395,1953.2,1953.1,0.0011]
[1772957674639,0.49020311,1953.2,1953.1,0.0011]
[1772957674938,1.77015395,1953.2,1953.1,0.0011]
[1772957677139,0.49020311,1953.2,1953.1,0.0011]
[1772957685865,0.48307098,1953.1,1952.5,0.0011]
[1772957686159,0.48307098,1953.1,1952.3,0.0033]
[1772957686160,0.48307098,1953.0,1952.3,0.0033]
[1772957686685,0.48307098,1952.8,1952.4,0.46075902]
[1772957686851,0.48307098,1952.8,1952.3,0.0033]
[1772957688637,0.48307098,1952.6,1952.2,0.0011]
[1772957691466,0.48307098,1952.4,1952.2,0.0011]
[1772957692350,1.28040973,1952.5,1952.2,0.45855902]
[1772957695692,1.76348071,1952.5,1952.2,0.45855902]
[1772957698299,1.76348071,1952.5,1951.0,0.45899788]
[1772957698300,0.48307098,1952.4,1951.0,0.45899788]
[1772957698491,0.48307098,1952.3,1951.2,0.45745902]
[1772957698797,0.48307098,1952.2,1951.2,0.45745902]
[1772957698993,0.48307098,1952.0,1951.0,0.00153886]
[1772957699166,0.48307098,1951.8,1951.0,0.00153886]
[1772957700901,0.48307098,1951.6,1951.0,0.00153886]
[1772957701272,0.48307098,1951.6,1951.1,0.0011]
[1772957704286,0.49741301,1951.4,1951.1,0.0011]
[1772957706003,0.49741301,1951.4,1951.0,0.00263886]
[1772957706370,0.49741301,1951.2,1951.0,0.00263886]
[1772957706570,0.49741301,1951.2,1950.8,0.0011]
[1772957706802,0.49741301,1951.2,1950.8,0.47040656]
[1772957708701,0.49741301,1951.7,1950.8,0.47040656]
[1772957709108,0.49741301,1951.7,1950.9,0.46930656]
[1772957710005,1.28086894,1951.9,1950.9,0.46930656]
[1772957710211,5.62115128,1951.8,1950.9,0.46930656]
[1772957711212,5.62115128,1951.8,1951.1,0.46930656]
[1772957711604,0.49741301,1951.7,1951.1,0.46930656]
[1772957713202,1.2810002,1951.6,1951.1,0.46930656]
[1772957713394,1.77841321,1951.6,1951.1,0.46930656]
[1772957713595,0.49741301,1951.5,1951.1,0.46930656]
[1772957714217,0.49741301,1951.5,1951.2,0.47040656]
[1772957715618,1.77852325,1951.5,1951.2,0.47040656]
[1772957722322,0.001,1951.7,1951.3,0.46930656]
[1772957724310,0.49841301,1951.7,1951.3,0.46930656]
[1772957726352,1.7794129,1951.7,1951.3,0.46930656]
[1772957726640,0.001,1951.6,1951.3,0.46930656]
[1772957728623,0.49841301,1951.6,1951.1,0.0011]
[1772957728836,0.49841301,1951.6,1950.8,0.0011]
[1772957729037,0.49841301,1951.6,1950.4,1.77430656]
[1772957729038,0.49741301,1951.4,1950.4,0.46930656]
[1772957729235,0.49741301,1951.4,1950.5,0.46930656]
[1772957730857,0.49741301,1951.2,1950.6,0.46930656]
[1772957731669,0.49741301,1951.2,1950.5,1.28170578]
[1772957731871,0.49741301,1951.2,1950.6,0.46930656]
[1772957733291,0.47653062,1951.0,1950.6,0.46930656]
[1772957733582,0.47653062,1951.0,1950.4,0.48931304]
[1772957737172,1.75799045,1950.9,1950.5,0.48931304]
[1772957737679,0.47653062,1950.9,1950.5,0.48931304]
[1772957738383,0.47653062,1950.9,1950.5,0.49041304]
[1772957738685,0.47753062,1950.9,1950.5,0.0011]
[1772957738981,0.47753062,1950.9,1950.0,6.29753886]
[1772957738982,0.47753062,1950.9,1950.0,6.77283777]
[1772957739184,0.47753062,1950.9,1950.2,0.0011]
[1772957739659,0.47653062,1950.7,1950.2,0.49041304]
[1772957740482,0.47653062,1950.7,1950.2,0.0011]
[1772957740684,0.47653062,1950.7,1950.2,0.49041304]
[1772957740890,1.28246482,1950.9,1950.2,0.49041304]
[1772957741399,1.75899544,1950.9,1950.2,0.49041304]
[1772957741988,1.75899544,1950.9,1950.3,1.28185407]
[1772957742301,0.47653062,1950.8,1950.4,0.48931304]
[1772957743902,0.001,1950.9,1950.4,0.48931304]
[1772957744074,0.001,1950.9,1950.6,0.48931304]
[1772957746121,0.001,1950.9,1950.7,1.77090426]
[1772957746694,0.001,1950.9,1950.7,1.28159122]
[1772957746900,0.001,1950.9,1950.8,0.48931304]
[1772957751111,0.47753062,1950.9,1950.6,1.77096996]
[1772957751494,0.001,1950.9,1950.7,0.48931304]
[1772957754130,0.001,1950.9,1950.7,1.77089]
[1772957755102,0.47753062,1950.9,1950.7,1.28157696]
[1772957755307,0.47753062,1950.9,1950.5,1.28277213]
[1772957755831,0.47753062,1950.9,1950.5,1.77208517]
[1772957757133,0.47753062,1950.9,1950.6,0.48931304]
[1772957758116,0.47753062,1950.9,1950.6,1.77094581]
[1772957758318,0.47753062,1950.9,1950.6,0.48931304]
[1772957758634,0.47753062,1950.9,1950.6,1.77096272]
[1772957759024,0.47753062,1950.9,1950.5,1.77208442]
[1772957762237,0.001,1950.8,1950.5,1.77208442]
[1772957762409,0.001,1950.8,1950.5,1.28277138]
[1772957762609,0.001,1950.8,1950.6,0.48915368]
[1772957765345,0.001,1950.8,1950.5,1.28277138]
[1772957765515,0.45043161,1950.7,1950.5,1.28277138]
[1772957766942,0.45043161,1950.7,1950.5,0.0011]
[1772957774085,0.001,1950.7,1950.5,0.47784529]
[1772957779503,0.45143161,1950.7,1950.5,0.0011]
[1772957782203,1.73303267,1950.7,1950.5,0.0011]
[1772957782410,0.45143161,1950.7,1950.5,0.0011]
[1772957782904,0.001,1950.7,1950.5,0.47784529]
[1772957785305,0.45143161,1950.7,1950.5,0.0011]
[1772957785599,0.001,1950.6,1950.5,0.0011]
[1772957788098,0.45143161,1950.6,1950.5,0.0011]
[1772957790627,0.001,1950.6,1950.5,0.0011]
[1772957792906,0.4557418,1950.6,1950.5,0.0011]
[1772957795635,0.4557418,1950.6,1950.4,0.0011]
[1772957797005,1.7374141,1950.6,1950.4,0.0011]
[1772957797217,0.4547418,1950.5,1950.4,0.0011]
[1772957797416,0.40374346,1950.5,1950.4,0.0011]
[1772957798022,0.40474346,1950.5,1950.4,0.0011]
[1772957798222,1.68646609,1950.5,1950.4,0.0011]
[1772957798533,0.4547418,1950.4,1950.2,0.0011]
[1772957802038,1.73653687,1950.4,1950.2,0.0011]
[1772957802203,0.4547418,1950.3,1949.7,0.49189707]
[1772957802398,0.4547418,1950.3,1949.9,0.49189707]
[1772957803424,0.4557418,1950.5,1950.1,0.49189707]
[1772957803933,0.4557418,1950.5,1950.1,0.44189707]
[1772957804534,0.4547418,1950.4,1950.1,1.72386961]
[1772957805038,0.001,1950.5,1950.3,0.49189707]
[1772957805400,0.001,1950.5,1950.3,4.50739524]
[1772957805734,0.001,1950.5,1950.4,0.49189707]
[1772957806231,0.4547418,1950.4,1950.1,2.61795689]
[1772957806407,0.4547418,1950.4,1950.2,4.01549817]
[1772957807738,0.4547418,1950.4,1950.2,5.29741153]
[1772957808427,0.4557418,1950.5,1950.2,5.29741153]
[1772957808628,0.4557418,1950.5,1950.3,4.01549817]
[1772957809139,0.001,1950.5,1950.3,4.50739524]
[1772957809507,0.001,1950.5,1950.4,0.0011]
[1772957811240,0.4557418,1950.5,1950.4,0.0011]
[1772957811734,0.001,1950.5,1950.4,0.0011]
[1772957814645,0.001,1950.5,1950.4,4.01659817]
[1772957815447,0.4557418,1950.5,1950.4,4.01659817]
[1772957816116,1.73746443,1950.5,1950.4,4.01659817]
[1772957816317,0.4557418,1950.5,1950.4,4.01659817]
[1772957818418,0.001,1950.5,1950.4,4.01659817]
[1772957820429,0.4557418,1950.5,1950.4,4.01659817]
[1772957821546,0.001,1950.5,1950.4,4.01659817]
[1772957821743,0.001,1950.5,1950.4,4.50849524]
[1772957821947,0.001,1950.6,1950.5,0.49189707]
[1772957822147,0.001,1950.6,1950.5,4.50739524]
[1772957824742,0.001,1950.9,1950.7,0.47649152]
[1772957826058,0.001,1950.9,1950.6,4.49198969]
[1772957826265,0.49811684,1950.8,1950.7,4.01549817]
[1772957826462,0.49811684,1950.8,1950.5,4.01549817]
[1772957826760,0.49811684,1950.6,1950.5,4.01549817]
[1772957827794,1.77969116,1950.8,1950.5,4.01549817]
[1772957828258,1.77969116,1950.8,1950.5,4.49198969]
[1772957828562,0.49811684,1950.7,1950.4,0.47759152]
[1772957828764,0.49811684,1950.7,1950.5,4.01549817]
[1772957829571,1.77971016,1950.7,1950.5,4.01549817]
[1772957831875,0.49811684,1950.7,1950.5,4.01549817]
[1772957832046,1.77971907,1950.7,1950.5,4.01549817]
[1772957832251,1.77971643,1950.7,1950.5,4.01549817]
[1772957832784,1.77971643,1950.7,1950.0,0.47759152]
[1772957832785,0.49811684,1950.6,1950.0,0.47759152]
[1772957832951,0.49811684,1950.6,1950.1,0.47979152]
[1772957833144,0.49811684,1950.6,1950.1,0.0033]
[1772957833951,0.49811684,1950.4,1950.1,0.47979152]
[1772957834655,0.49811684,1950.4,1950.3,0.0011]
[1772957835974,1.77990519,1950.4,1950.3,0.0011]
[1772957840383,1.77990519,1950.4,1950.0,0.47759152]
[1772957840562,1.77990519,1950.4,1950.1,0.0033]
[1772957842586,0.49811684,1950.3,1950.1,0.0033]
[1772957844483,1.7800313,1950.3,1950.1,0.0033]
[1772957846087,1.7800313,1950.3,1950.2,0.0011]
[1772957846388,0.49811684,1950.2,1950.0,0.0011]
[1772957846684,0.49811684,1950.1,1950.0,0.0044]
[1772957849589,1.78010237,1950.1,1950.0,0.0044]
[1772957849757,0.49811684,1950.1,1950.0,0.0044]
[1772957850596,1.78016812,1950.0,1949.9,0.0011]
[1772957854892,0.49811684,1950.0,1949.9,0.0011]
[1772957855300,1.78016812,1950.0,1949.9,0.0011]
[1772957855597,0.49811684,1950.0,1949.9,0.0011]